[Event "*** Titled Tuesday 3|2 Blitz"]
[Site "Chess.com"]
[Date "2016.06.07"]
[Round "9"]
[White "Makalexa"]
[Black "jcibarra"]
[Result "0-1"]
[WhiteElo "2177"]
[BlackElo "2625"]
[TimeControl "180+2"]
[EndTime "12:51:03 PDT"]
[Termination "jcibarra won by resignation"]

1. e4 {[%clk 0:03:01.9]} 1... c5 {[%clk 0:02:59.8]} 2. Nf3 {[%clk 0:03:02.4]}
2... e6 {[%clk 0:03:01.3]} 3. d4 {[%clk 0:03:02.9]} 3... cxd4 {[%clk 0:03:03.2]}
4. Nxd4 {[%clk 0:03:04]} 4... a6 {[%clk 0:03:04.9]} 5. Bd3 {[%clk 0:03:04.3]}
5... Nf6 {[%clk 0:03:05.2]} 6. Qe2 {[%clk 0:03:02.8]} 6... d6 {[%clk 0:03:02.2]}
7. O-O {[%clk 0:03:03.1]} 7... g6 {[%clk 0:02:59.8]} 8. c4 {[%clk 0:03:02.3]}
8... Bg7 {[%clk 0:03:01]} 9. Nc3 {[%clk 0:02:46.7]} 9... O-O {[%clk 0:03:01.8]}
10. Be3 {[%clk 0:02:44.9]} 10... Nbd7 {[%clk 0:03:02.3]} 11. f3 {[%clk
0:02:45.7]} 11... Qc7 {[%clk 0:03:03.4]} 12. Rac1 {[%clk 0:02:45.7]} 12... b6
{[%clk 0:03:04.8]} 13. b3 {[%clk 0:02:46.1]} 13... Bb7 {[%clk 0:03:06]} 14. Rfd1
{[%clk 0:02:47]} 14... Rac8 {[%clk 0:03:07]} 15. Qd2 {[%clk 0:02:41.4]} 15...
Rfe8 {[%clk 0:03:06.2]} 16. Nc2 {[%clk 0:02:36.6]} 16... Qb8 {[%clk 0:03:05.5]}
17. Na4 {[%clk 0:02:35]} 17... Bc6 {[%clk 0:03:04.5]} 18. Qb4 {[%clk 0:02:27.6]}
18... Rc7 {[%clk 0:02:33.7]} 19. Nd4 {[%clk 0:02:23.4]} 19... Bxa4 {[%clk
0:02:27.8]} 20. Qxa4 {[%clk 0:02:23.9]} 20... Nc5 {[%clk 0:02:29.2]} 21. Qa3
{[%clk 0:02:19.1]} 21... Nxd3 {[%clk 0:02:29.7]} 22. Rxd3 {[%clk 0:02:19.4]}
22... d5 {[%clk 0:02:31.2]} 23. exd5 {[%clk 0:02:03.1]} 23... exd5 {[%clk
0:02:31.1]} 24. Bf4 {[%clk 0:02:04.3]} 24... dxc4 {[%clk 0:02:29.9]} 25. Bxc7
{[%clk 0:02:03.2]} 25... Qxc7 {[%clk 0:02:31.1]} 26. bxc4 {[%clk 0:02:02.1]}
26... Nh5 {[%clk 0:02:26.2]} 27. c5 {[%clk 0:01:51.9]} 27... Nf4 {[%clk
0:02:25.4]} 28. cxb6 {[%clk 0:01:47.6]} 28... Qxb6 {[%clk 0:02:14.9]} 29. Qb3
{[%clk 0:00:57.4]} 29... Bxd4+ {[%clk 0:02:07.8]} 30. Kh1 {[%clk 0:00:58.3]}
30... Nxd3 {[%clk 0:02:07.5]} 31. Qxd3 {[%clk 0:00:53.7]} 31... Bf6 {[%clk
0:02:04.8]} 32. g3 {[%clk 0:00:44.1]} 32... Qe3 {[%clk 0:02:05]} 33. Qd1 {[%clk
0:00:31.9]} 33... Qf2 {[%clk 0:02:04]} 0-1

[Event "*** Titled Tuesday 3|2 Blitz"]
[Site "Chess.com"]
[Date "2016.06.07"]
[Round "9"]
[White "Rating-Schmating"]
[Black "Masterbeaterr"]
[Result "1-0"]
[WhiteElo "2201"]
[BlackElo "2312"]
[TimeControl "180+2"]
[EndTime "12:51:09 PDT"]
[Termination "Rating-Schmating won by checkmate"]

1. e4 {[%clk 0:03:01.9]} 1... e5 {[%clk 0:02:59.2]} 2. Nf3 {[%clk 0:03:01.8]}
2... Nc6 {[%clk 0:03:00]} 3. d4 {[%clk 0:03:02.5]} 3... exd4 {[%clk 0:03:00.3]}
4. Nxd4 {[%clk 0:03:03.1]} 4... Nf6 {[%clk 0:03:01.6]} 5. Nxc6 {[%clk
0:03:02.8]} 5... bxc6 {[%clk 0:03:03.5]} 6. e5 {[%clk 0:03:03.2]} 6... Qe7
{[%clk 0:03:04.1]} 7. Qe2 {[%clk 0:03:04.2]} 7... Nd5 {[%clk 0:03:05.6]} 8. c4
{[%clk 0:03:02.8]} 8... Ba6 {[%clk 0:03:07.1]} 9. Nd2 {[%clk 0:03:03.1]} 9...
Nf4 {[%clk 0:03:03.9]} 10. Qe4 {[%clk 0:03:02.7]} 10... Ng6 {[%clk 0:03:01.5]}
11. f4 {[%clk 0:02:51]} 11... O-O-O {[%clk 0:02:52.3]} 12. Nf3 {[%clk
0:02:45.1]} 12... Qb4+ {[%clk 0:02:42.1]} 13. Kf2 {[%clk 0:02:25.8]} 13... Bc5+
{[%clk 0:02:40.8]} 14. Kg3 {[%clk 0:02:25.9]} 14... d5 {[%clk 0:02:34.7]} 15.
Qf5+ {[%clk 0:02:22.5]} 15... Kb8 {[%clk 0:02:34.1]} 16. Bd2 {[%clk 0:02:22.7]}
16... Qa4 {[%clk 0:02:29.7]} 17. b3 {[%clk 0:02:15.5]} 17... Qa3 {[%clk
0:02:30.2]} 18. Bc1 {[%clk 0:02:08.3]} 18... Qb4 {[%clk 0:02:29.9]} 19. Bd2
{[%clk 0:02:09.5]} 19... Qa3 {[%clk 0:02:30.7]} 20. b4 {[%clk 0:02:09.4]} 20...
Be3 {[%clk 0:02:16.4]} 21. Bxe3 {[%clk 0:01:58.9]} 21... Qxe3 {[%clk 0:02:18.3]}
22. b5 {[%clk 0:01:58.2]} 22... Bc8 {[%clk 0:02:18.2]} 23. Qd3 {[%clk
0:01:46.3]} 23... Qxf4+ {[%clk 0:02:17.1]} 24. Kf2 {[%clk 0:01:47.7]} 24... Nxe5
{[%clk 0:02:17.4]} 25. Qd4 {[%clk 0:01:38.8]} 25... Qxd4+ {[%clk 0:02:00.6]} 26.
Nxd4 {[%clk 0:01:39.5]} 26... dxc4 {[%clk 0:02:02.2]} 27. Nxc6+ {[%clk
0:01:37.6]} 27... Nxc6 {[%clk 0:02:02.1]} 28. bxc6 {[%clk 0:01:39.5]} 28... Ba6
{[%clk 0:02:02.6]} 29. Rb1+ {[%clk 0:01:39.2]} 29... Kc8 {[%clk 0:02:02.3]} 30.
Rb4 {[%clk 0:01:38.8]} 30... Rd2+ {[%clk 0:02:01.4]} 31. Ke3 {[%clk 0:01:38.2]}
31... Rxa2 {[%clk 0:02:00.9]} 32. g3 {[%clk 0:01:34]} 32... Re8+ {[%clk
0:02:00.7]} 33. Kd4 {[%clk 0:01:35.1]} 33... Rd2+ {[%clk 0:01:59.2]} 34. Kc3
{[%clk 0:01:32.5]} 34... Ra2 {[%clk 0:01:49.7]} 35. Bh3+ {[%clk 0:01:33.1]}
35... Kd8 {[%clk 0:01:51]} 36. Rb8+ {[%clk 0:01:33.8]} 36... Ke7 {[%clk
0:01:52.4]} 37. Re1+ {[%clk 0:01:34.6]} 37... Kd6 {[%clk 0:01:53.9]} 38. Rbxe8
{[%clk 0:01:35.1]} 38... Ra3+ {[%clk 0:01:55.2]} 39. Kc2 {[%clk 0:01:33.5]}
39... Kxc6 {[%clk 0:01:53.7]} 40. R1e5 {[%clk 0:01:25]} 40... Ra2+ {[%clk
0:01:52.9]} 41. Kc3 {[%clk 0:01:25.7]} 41... Rxh2 {[%clk 0:01:54.8]} 42. Bc8
{[%clk 0:01:23.6]} 42... Bxc8 {[%clk 0:01:51.7]} 43. Rxc8 {[%clk 0:01:25.5]}
43... Rg2 {[%clk 0:01:53]} 44. Re7 {[%clk 0:01:24.3]} 44... Rxg3+ {[%clk
0:01:54.1]} 45. Kxc4 {[%clk 0:01:25.3]} 45... h5 {[%clk 0:01:50.9]} 46. Rcxc7+
{[%clk 0:01:25.5]} 46... Kd6 {[%clk 0:01:51.7]} 47. Rcd7+ {[%clk 0:01:24.2]}
47... Kc6 {[%clk 0:01:52.5]} 48. Rxa7 {[%clk 0:01:25.5]} 48... h4 {[%clk
0:01:51.7]} 49. Ra6# {[%clk 0:01:26.3]} 1-0

[Event "*** Titled Tuesday 3|2 Blitz"]
[Site "Chess.com"]
[Date "2016.06.07"]
[Round "9"]
[White "WanderingPuppet"]
[Black "josiwales"]
[Result "1-0"]
[WhiteElo "2275"]
[BlackElo "2103"]
[TimeControl "180+2"]
[EndTime "12:51:34 PDT"]
[Termination "WanderingPuppet won by resignation"]

1. e4 {[%clk 0:03:01.9]} 1... c5 {[%clk 0:03:00.1]} 2. Nf3 {[%clk 0:03:01.7]}
2... d6 {[%clk 0:03:01.1]} 3. d4 {[%clk 0:03:03.1]} 3... cxd4 {[%clk 0:03:02]}
4. Nxd4 {[%clk 0:03:05]} 4... Nf6 {[%clk 0:03:03.3]} 5. Nc3 {[%clk 0:03:06.7]}
5... g6 {[%clk 0:03:03]} 6. Be3 {[%clk 0:03:08.2]} 6... Bg7 {[%clk 0:03:04]} 7.
f3 {[%clk 0:03:09.7]} 7... a6 {[%clk 0:03:03.7]} 8. Qd2 {[%clk 0:03:11.2]} 8...
h5 {[%clk 0:03:04.9]} 9. Bc4 {[%clk 0:03:12.2]} 9... Nbd7 {[%clk 0:03:05.4]} 10.
O-O-O {[%clk 0:03:11.1]} 10... b5 {[%clk 0:03:05.7]} 11. Bb3 {[%clk 0:03:09]}
11... Bb7 {[%clk 0:03:06.5]} 12. Kb1 {[%clk 0:03:09.6]} 12... Rc8 {[%clk
0:02:53.2]} 13. h3 {[%clk 0:03:09.1]} 13... Nc5 {[%clk 0:02:51.8]} 14. g4 {[%clk
0:03:08.9]} 14... h4 {[%clk 0:02:51.4]} 15. g5 {[%clk 0:03:08.4]} 15... Nh5
{[%clk 0:02:52]} 16. Nd5 {[%clk 0:02:35.2]} 16... Ng3 {[%clk 0:02:47]} 17. Rhe1
{[%clk 0:02:35.8]} 17... Qd7 {[%clk 0:02:34.3]} 18. Nb6 {[%clk 0:02:24.7]} 18...
Qxh3 {[%clk 0:02:33.1]} 19. Nxc8 {[%clk 0:02:25.5]} 19... Bxc8 {[%clk
0:02:33.5]} 20. Nf5 {[%clk 0:02:05.1]} 20... gxf5 {[%clk 0:02:30]} 21. Bxc5
{[%clk 0:02:05.7]} 21... fxe4 {[%clk 0:02:25.3]} 22. Bxd6 {[%clk 0:01:56.8]}
22... exd6 {[%clk 0:02:21.2]} 23. Qxd6 {[%clk 0:01:56.3]} 23... Qd7 {[%clk
0:02:18.8]} 24. Qc5 {[%clk 0:01:25.2]} 24... Qf5 {[%clk 0:01:26.1]} 25. Rd5
{[%clk 0:01:15.3]} 25... Qe6 {[%clk 0:01:14.2]} 26. Rd8+ {[%clk 0:01:00.6]}
26... Kxd8 {[%clk 0:01:08.4]} 27. Bxe6 {[%clk 0:01:02]} 27... Bxe6 {[%clk
0:01:09]} 28. Rd1+ {[%clk 0:00:51.5]} 28... Ke8 {[%clk 0:01:08.2]} 29. Qc7
{[%clk 0:00:40.5]} 1-0

[Event "*** Titled Tuesday 3|2 Blitz"]
[Site "Chess.com"]
[Date "2016.06.07"]
[Round "9"]
[White "hansen"]
[Black "OldweakGM"]
[Result "0-1"]
[WhiteElo "2563"]
[BlackElo "2613"]
[TimeControl "180+2"]
[EndTime "12:51:39 PDT"]
[Termination "OldweakGM won by resignation"]

1. e4 {[%clk 0:03:01.9]} 1... c5 {[%clk 0:03:00.3]} 2. Nf3 {[%clk 0:02:59.9]}
2... d6 {[%clk 0:03:01.3]} 3. c3 {[%clk 0:02:58.9]} 3... Nf6 {[%clk 0:03:01.5]}
4. h3 {[%clk 0:02:56.2]} 4... Nc6 {[%clk 0:02:51.9]} 5. d4 {[%clk 0:02:52.8]}
5... cxd4 {[%clk 0:02:50.3]} 6. cxd4 {[%clk 0:02:53.9]} 6... Nxe4 {[%clk
0:02:51.4]} 7. d5 {[%clk 0:02:55]} 7... Qa5+ {[%clk 0:02:51.8]} 8. Nc3 {[%clk
0:02:55.6]} 8... Nxc3 {[%clk 0:02:52.4]} 9. bxc3 {[%clk 0:02:52.3]} 9... Ne5
{[%clk 0:02:45.1]} 10. Be2 {[%clk 0:02:03.5]} 10... Nxf3+ {[%clk 0:02:43.8]} 11.
Bxf3 {[%clk 0:01:47.7]} 11... g6 {[%clk 0:02:37.2]} 12. Qd4 {[%clk 0:01:46]}
12... Rg8 {[%clk 0:02:37.1]} 13. O-O {[%clk 0:01:46.4]} 13... Bg7 {[%clk
0:02:38]} 14. Qh4 {[%clk 0:01:42.8]} 14... Qxc3 {[%clk 0:02:35.9]} 15. Bg5
{[%clk 0:01:37.2]} 15... h6 {[%clk 0:01:57.7]} 16. Bxe7 {[%clk 0:01:13.1]} 16...
g5 {[%clk 0:01:36.3]} 17. Qe4 {[%clk 0:00:36.3]} 17... Qe5 {[%clk 0:01:37.2]}
18. Rae1 {[%clk 0:00:27.9]} 18... Qxe4 {[%clk 0:01:37.8]} 19. Rxe4 {[%clk
0:00:29.8]} 19... Bf5 {[%clk 0:01:38.9]} 20. Ree1 {[%clk 0:00:25.7]} 20... Kd7
{[%clk 0:01:39.2]} 21. Bd1 {[%clk 0:00:16.7]} 21... Bd3 {[%clk 0:01:29]} 22. Re3
{[%clk 0:00:07.8]} 22... Bxf1 {[%clk 0:01:24.5]} 23. Bg4+ {[%clk 0:00:08.7]}
23... Kc7 {[%clk 0:01:23.4]} 24. Kxf1 {[%clk 0:00:10.1]} 24... Rge8 {[%clk
0:01:23.7]} 25. h4 {[%clk 0:00:07.9]} 25... Be5 {[%clk 0:01:19.5]} 26. Rxe5
{[%clk 0:00:05.3]} 26... dxe5 {[%clk 0:01:17.5]} 27. d6+ {[%clk 0:00:07.2]}
27... Kc6 {[%clk 0:01:15.7]} 28. Bf3+ {[%clk 0:00:08]} 28... Kc5 {[%clk
0:01:14.1]} 29. Bxb7 {[%clk 0:00:06.7]} 29... Rxe7 {[%clk 0:01:15]} 0-1

[Event "*** Titled Tuesday 3|2 Blitz"]
[Site "Chess.com"]
[Date "2016.06.07"]
[Round "9"]
[White "TomsKantans"]
[Black "playerzr"]
[Result "0-1"]
[WhiteElo "2432"]
[BlackElo "2099"]
[TimeControl "180+2"]
[EndTime "12:51:44 PDT"]
[Termination "playerzr won on time"]

1. e4 {[%clk 0:03:01.9]} 1... c5 {[%clk 0:02:57.7]} 2. Nf3 {[%clk 0:03:02.5]}
2... Nc6 {[%clk 0:02:58.7]} 3. d4 {[%clk 0:03:03.2]} 3... cxd4 {[%clk
0:02:59.8]} 4. Nxd4 {[%clk 0:03:05.1]} 4... e5 {[%clk 0:02:59.8]} 5. Nb5 {[%clk
0:03:05.4]} 5... d6 {[%clk 0:03:01]} 6. c4 {[%clk 0:03:02.3]} 6... a6 {[%clk
0:03:02]} 7. N5c3 {[%clk 0:03:02.3]} 7... Be6 {[%clk 0:03:01.6]} 8. Be3 {[%clk
0:03:02.7]} 8... Nf6 {[%clk 0:02:58.7]} 9. f3 {[%clk 0:03:01.3]} 9... Be7 {[%clk
0:02:59.3]} 10. Be2 {[%clk 0:03:00.9]} 10... O-O {[%clk 0:02:59.6]} 11. O-O
{[%clk 0:03:01.1]} 11... Rc8 {[%clk 0:02:44.9]} 12. Nd5 {[%clk 0:02:42]} 12...
Bxd5 {[%clk 0:02:39.8]} 13. cxd5 {[%clk 0:02:43.9]} 13... Nb8 {[%clk 0:02:23.4]}
14. Nc3 {[%clk 0:02:33.6]} 14... Nh5 {[%clk 0:02:20.8]} 15. Qd2 {[%clk
0:02:03.2]} 15... Nd7 {[%clk 0:02:13.5]} 16. Rac1 {[%clk 0:01:35.9]} 16... Nf4
{[%clk 0:02:12.4]} 17. g3 {[%clk 0:01:20.2]} 17... Nxe2+ {[%clk 0:01:56.4]} 18.
Nxe2 {[%clk 0:01:22.1]} 18... f5 {[%clk 0:01:46.3]} 19. Rxc8 {[%clk 0:01:09.4]}
19... Qxc8 {[%clk 0:01:45.9]} 20. Rc1 {[%clk 0:01:11.3]} 20... Qd8 {[%clk
0:01:37.2]} 21. Qb4 {[%clk 0:01:00.1]} 21... fxe4 {[%clk 0:01:26.5]} 22. fxe4
{[%clk 0:00:50.2]} 22... b5 {[%clk 0:01:26.6]} 23. Kg2 {[%clk 0:00:49.2]} 23...
Nf6 {[%clk 0:01:18.2]} 24. h3 {[%clk 0:00:44.6]} 24... Qe8 {[%clk 0:01:05]} 25.
Bg5 {[%clk 0:00:33.4]} 25... Qh5 {[%clk 0:01:04.3]} 0-1

[Event "*** Titled Tuesday 3|2 Blitz"]
[Site "Chess.com"]
[Date "2016.06.07"]
[Round "9"]
[White "dabee"]
[Black "biostatistician"]
[Result "0-1"]
[WhiteElo "2404"]
[BlackElo "2315"]
[TimeControl "180+2"]
[EndTime "12:51:53 PDT"]
[Termination "biostatistician won by resignation"]

1. d4 {[%clk 0:03:01.9]} 1... Nf6 {[%clk 0:03:00.1]} 2. Bg5 {[%clk 0:03:02.6]}
2... Ne4 {[%clk 0:03:00.2]} 3. Bf4 {[%clk 0:03:03.2]} 3... d5 {[%clk 0:03:02.1]}
4. e3 {[%clk 0:03:03.5]} 4... Bf5 {[%clk 0:03:02.3]} 5. f3 {[%clk 0:03:00.5]}
5... Nd6 {[%clk 0:03:02.3]} 6. Nd2 {[%clk 0:03:00]} 6... e6 {[%clk 0:03:02.5]}
7. c4 {[%clk 0:02:59.7]} 7... Nxc4 {[%clk 0:03:00.2]} 8. Nxc4 {[%clk 0:02:59.7]}
8... dxc4 {[%clk 0:03:02.1]} 9. Bxc4 {[%clk 0:02:59.9]} 9... Bb4+ {[%clk
0:03:02.5]} 10. Kf2 {[%clk 0:03:00.5]} 10... Bd6 {[%clk 0:03:03.5]} 11. Ne2
{[%clk 0:02:57]} 11... O-O {[%clk 0:03:03.2]} 12. Qb3 {[%clk 0:02:44.5]} 12...
Nd7 {[%clk 0:02:55.7]} 13. Rhd1 {[%clk 0:02:22.3]} 13... Nb6 {[%clk 0:02:44.3]}
14. Bd3 {[%clk 0:02:22.1]} 14... Bxd3 {[%clk 0:02:40.3]} 15. Rxd3 {[%clk
0:02:19.4]} 15... Nd5 {[%clk 0:02:39.3]} 16. Bg3 {[%clk 0:02:07.6]} 16... b6
{[%clk 0:02:22.8]} 17. e4 {[%clk 0:02:04.4]} 17... Bxg3+ {[%clk 0:02:23.1]} 18.
hxg3 {[%clk 0:02:03.3]} 18... Nf6 {[%clk 0:02:23.8]} 19. Rc1 {[%clk 0:01:57.7]}
19... Rc8 {[%clk 0:02:24.4]} 20. Rc6 {[%clk 0:01:55.5]} 20... Qd7 {[%clk
0:02:17.2]} 21. Rdc3 {[%clk 0:01:55.9]} 21... Rfd8 {[%clk 0:02:17.7]} 22. Qa4
{[%clk 0:01:50]} 22... a5 {[%clk 0:02:16.2]} 23. Qc2 {[%clk 0:01:31.3]} 23...
Ne8 {[%clk 0:02:16.3]} 24. a3 {[%clk 0:01:30.9]} 24... h5 {[%clk 0:02:13.1]} 25.
b4 {[%clk 0:01:29.5]} 25... axb4 {[%clk 0:02:13.3]} 26. axb4 {[%clk 0:01:30.5]}
26... Qe7 {[%clk 0:02:11.1]} 27. Rxb6 {[%clk 0:01:20.8]} 27... Rb8 {[%clk
0:02:03.1]} 28. Rxb8 {[%clk 0:01:17.6]} 28... Rxb8 {[%clk 0:02:05]} 29. Qa4
{[%clk 0:01:13]} 29... Rxb4 {[%clk 0:01:55.8]} 30. Qa5 {[%clk 0:01:09.4]} 30...
Rb2 {[%clk 0:01:53.6]} 31. Qxh5 {[%clk 0:01:04]} 31... Qb4 {[%clk 0:01:52.3]}
32. Qc5 {[%clk 0:01:04.3]} 32... Qa4 {[%clk 0:01:42.4]} 33. Rc1 {[%clk
0:00:45.8]} 33... Nd6 {[%clk 0:01:30.7]} 34. g4 {[%clk 0:00:40.9]} 34... Qa2
{[%clk 0:01:07.5]} 35. Qc4 {[%clk 0:00:41.4]} 35... Nxc4 {[%clk 0:01:06.9]} 0-1

[Event "*** Titled Tuesday 3|2 Blitz"]
[Site "Chess.com"]
[Date "2016.06.07"]
[Round "9"]
[White "profofchess"]
[Black "kikydu96"]
[Result "0-1"]
[WhiteElo "2310"]
[BlackElo "2349"]
[TimeControl "180+2"]
[EndTime "12:51:56 PDT"]
[Termination "kikydu96 won by resignation"]

1. e4 {[%clk 0:03:01.9]} 1... e5 {[%clk 0:02:48.1]} 2. Nf3 {[%clk 0:03:00.6]}
2... Nc6 {[%clk 0:02:48.8]} 3. d4 {[%clk 0:03:00.8]} 3... exd4 {[%clk
0:02:49.6]} 4. Nxd4 {[%clk 0:03:02.7]} 4... Nf6 {[%clk 0:02:49.6]} 5. Nxc6
{[%clk 0:03:02.4]} 5... bxc6 {[%clk 0:02:50]} 6. Qe2 {[%clk 0:03:04.1]} 6... Be7
{[%clk 0:02:42.2]} 7. e5 {[%clk 0:03:03]} 7... Nd5 {[%clk 0:02:42.6]} 8. c4
{[%clk 0:03:04.1]} 8... Nb6 {[%clk 0:02:40]} 9. Qg4 {[%clk 0:03:04.1]} 9... g6
{[%clk 0:02:37.5]} 10. Bh6 {[%clk 0:03:03.6]} 10... d5 {[%clk 0:02:38.5]} 11.
Qf3 {[%clk 0:03:01.7]} 11... Be6 {[%clk 0:02:29.2]} 12. Nc3 {[%clk 0:02:52.9]}
12... Bb4 {[%clk 0:02:25]} 13. O-O-O {[%clk 0:02:36.2]} 13... Qe7 {[%clk
0:02:22.5]} 14. h4 {[%clk 0:02:03]} 14... Qc5 {[%clk 0:02:12.4]} 15. cxd5 {[%clk
0:01:58.1]} 15... Nxd5 {[%clk 0:02:03.9]} 16. Be3 {[%clk 0:01:19.9]} 16... Nxe3
{[%clk 0:02:00.8]} 17. Qxe3 {[%clk 0:01:20.6]} 17... Qxe3+ {[%clk 0:02:00.4]}
18. fxe3 {[%clk 0:01:22.5]} 18... Bxc3 {[%clk 0:01:53.6]} 19. bxc3 {[%clk
0:01:23.2]} 19... Bxa2 {[%clk 0:01:55.3]} 20. c4 {[%clk 0:01:22.7]} 20... Rb8
{[%clk 0:01:54.8]} 21. Bd3 {[%clk 0:01:03.4]} 21... Ke7 {[%clk 0:01:54.9]} 22.
Kd2 {[%clk 0:00:47.5]} 22... Rb2+ {[%clk 0:01:52.7]} 23. Kc3 {[%clk 0:00:48.7]}
23... Rxg2 {[%clk 0:01:53.4]} 24. Ra1 {[%clk 0:00:45.3]} 24... Rb8 {[%clk
0:01:50.6]} 25. Bc2 {[%clk 0:00:46.4]} 25... Bxc4 {[%clk 0:01:43.4]} 26. Rxa7
{[%clk 0:00:47.4]} 26... Bd5 {[%clk 0:01:41.1]} 27. Rxc7+ {[%clk 0:00:45.8]}
27... Ke6 {[%clk 0:01:42.6]} 28. Rf1 {[%clk 0:00:46.8]} 28... Kxe5 {[%clk
0:01:40.4]} 29. e4 {[%clk 0:00:45.6]} 29... Rxc2+ {[%clk 0:01:32.4]} 30. Kxc2
{[%clk 0:00:45.1]} 30... Bxe4+ {[%clk 0:01:33.7]} 31. Kc3 {[%clk 0:00:46]} 31...
Bd5 {[%clk 0:01:32.5]} 32. Re7+ {[%clk 0:00:35.2]} 32... Kd6 {[%clk 0:01:32.9]}
33. Ra7 {[%clk 0:00:35.9]} 33... Rb3+ {[%clk 0:01:33]} 34. Kc2 {[%clk 0:00:37]}
34... Rh3 {[%clk 0:01:34.1]} 35. Rf4 {[%clk 0:00:35.9]} 35... Ke5 {[%clk
0:01:26.3]} 36. Rb4 {[%clk 0:00:30.4]} 36... c5 {[%clk 0:01:19.9]} 37. Rg4
{[%clk 0:00:23.9]} 37... f5 {[%clk 0:01:20.2]} 38. Rg5 {[%clk 0:00:22.5]} 38...
Rxh4 {[%clk 0:01:20.7]} 0-1

[Event "*** Titled Tuesday 3|2 Blitz"]
[Site "Chess.com"]
[Date "2016.06.07"]
[Round "9"]
[White "E-Shaposhnikov"]
[Black "Alexander_Moskalenko"]
[Result "1-0"]
[WhiteElo "2622"]
[BlackElo "2669"]
[TimeControl "180+2"]
[EndTime "12:52:02 PDT"]
[Termination "E-Shaposhnikov won by resignation"]

1. e4 {[%clk 0:02:57.3]} 1... Nf6 {[%clk 0:03:01.9]} 2. e5 {[%clk 0:02:56.7]}
2... Nd5 {[%clk 0:03:03]} 3. Nf3 {[%clk 0:02:58.3]} 3... d6 {[%clk 0:03:03.4]}
4. d4 {[%clk 0:02:55.7]} 4... dxe5 {[%clk 0:03:03.9]} 5. Nxe5 {[%clk 0:02:56.7]}
5... c6 {[%clk 0:03:05.4]} 6. c4 {[%clk 0:02:51.4]} 6... Nb4 {[%clk 0:03:00.5]}
7. Na3 {[%clk 0:02:46.5]} 7... Nd7 {[%clk 0:03:00.7]} 8. Nxd7 {[%clk 0:02:34.6]}
8... Bxd7 {[%clk 0:03:01.9]} 9. Be2 {[%clk 0:02:30.4]} 9... g6 {[%clk
0:03:01.8]} 10. O-O {[%clk 0:02:30.9]} 10... Bg7 {[%clk 0:03:01.2]} 11. Be3
{[%clk 0:02:30.7]} 11... O-O {[%clk 0:03:01]} 12. Nc2 {[%clk 0:02:31.6]} 12...
a5 {[%clk 0:02:51.6]} 13. Nxb4 {[%clk 0:02:28]} 13... axb4 {[%clk 0:02:53.5]}
14. Qb3 {[%clk 0:02:29.5]} 14... Qa5 {[%clk 0:02:28.3]} 15. a3 {[%clk
0:02:17.5]} 15... bxa3 {[%clk 0:02:29.2]} 16. Rxa3 {[%clk 0:02:13.6]} 16... Qc7
{[%clk 0:02:30]} 17. Rfa1 {[%clk 0:02:15.1]} 17... Rxa3 {[%clk 0:02:30.3]} 18.
Rxa3 {[%clk 0:02:12.6]} 18... e5 {[%clk 0:02:17.5]} 19. d5 {[%clk 0:02:10]}
19... e4 {[%clk 0:02:18.9]} 20. Bc5 {[%clk 0:02:00.2]} 20... cxd5 {[%clk
0:02:14.8]} 21. Bxf8 {[%clk 0:01:56.5]} 21... Bxf8 {[%clk 0:02:16]} 22. Ra7
{[%clk 0:01:54.6]} 22... d4 {[%clk 0:02:16.6]} 23. Qxb7 {[%clk 0:01:49.4]} 23...
Qxb7 {[%clk 0:02:04.1]} 24. Rxb7 {[%clk 0:01:50.2]} 24... Be6 {[%clk 0:02:06]}
25. b4 {[%clk 0:01:36.2]} 25... d3 {[%clk 0:02:06.3]} 26. Bd1 {[%clk 0:01:35.2]}
26... Kg7 {[%clk 0:01:49.6]} 27. c5 {[%clk 0:01:28.4]} 27... Kf6 {[%clk
0:01:50.5]} 28. Rb8 {[%clk 0:01:28.4]} 28... Be7 {[%clk 0:01:46.6]} 29. Re8
{[%clk 0:01:17.6]} 29... Bd5 {[%clk 0:01:36.8]} 30. g4 {[%clk 0:01:14.4]} 30...
Ke6 {[%clk 0:01:30.8]} 31. g5 {[%clk 0:01:05.4]} 31... Bc6 {[%clk 0:01:23.5]}
32. Bb3+ {[%clk 0:01:05.7]} 32... Kd7 {[%clk 0:01:23.7]} 33. Rh8 {[%clk
0:01:05.6]} 33... Bxg5 {[%clk 0:01:18.8]} 34. Rxh7 {[%clk 0:01:06.3]} 34... Bd2
{[%clk 0:01:20.1]} 35. Rxf7+ {[%clk 0:01:03.3]} 35... Kd8 {[%clk 0:01:21.3]} 36.
Rg7 {[%clk 0:01:02.5]} 36... g5 {[%clk 0:01:10.9]} 37. Rg6 {[%clk 0:00:59]}
37... Kc7 {[%clk 0:01:07.2]} 38. Rg7+ {[%clk 0:00:50.7]} 38... Kd8 {[%clk
0:01:07.9]} 39. Rg6 {[%clk 0:00:43.4]} 39... Kc7 {[%clk 0:01:08.5]} 40. Rg7+
{[%clk 0:00:44.6]} 40... Kd8 {[%clk 0:01:09.1]} 1-0